fUSD/lending_fUSD_20240612
["ID","MTS","AMOUNT","RATE_DAILY","PERIOD"]
[329279371,1718212472735,-939.6602095,0.00031799,120]
[329279372,1718212472765,-332.12336536,0.00031799,30]
[329279373,1718212472796,-984.77089334,0.00031799,30]
[329279374,1718212472829,-500.0,0.00031799,30]
[329279375,1718212472861,-463.75760284,0.00031799,120]
[329279376,1718212472892,-1503.2093139,0.00031799,120]
[329279377,1718212472924,-565.39702894,0.00031799,120]
[329279378,1718212472955,-1052.44206432,0.00031799,120]
[329279379,1718212472997,-349.97781063,0.00031799,120]
[329279380,1718212473032,-186.68272029,0.00031799,120]
[329279381,1718212473063,-197.68066274,0.00031799,120]
[329279382,1718212473100,-565.73896705,0.00031799,120]
[329279383,1718212473130,-3265.0717552,0.00031799,120]
[329279384,1718212473159,-617.4958242,0.00031799,120]
[329279385,1718212473190,-348.3565015,0.00031799,120]
[329279386,1718212473220,-445.08921201,0.00031799,120]
[329279387,1718212473249,-842.17401224,0.00031799,30]
[329279388,1718212473278,-942.85853087,0.00031799,120]
[329279389,1718212473309,-192.49991478,0.00031799,30]
[329279390,1718212473341,-302.78002778,0.00031799,120]
[329279391,1718212473371,-949.8297375,0.00031799,30]
[329279392,1718212473509,-421.78778348,0.00031799,30]
[329279393,1718212473541,-816.18002493,0.00031799,120]
[329279394,1718212473574,-626.91997702,0.00031799,120]
[329279395,1718212473605,-252.13660241,0.00031799,30]
[329279396,1718212473637,-2300.2141892,0.00031799,60]
[329279397,1718212473668,-3287.75044355,0.00031799,90]
[329279398,1718212473698,-499.4918651,0.00031799,120]
[329279399,1718212473728,-274.95646758,0.00031799,120]
[329279400,1718212473760,-2185.82830243,0.00031799,30]
[329279401,1718212473792,-898.06425275,0.00031799,120]
[329279402,1718212473826,-1369.8697028,0.00031799,30]
[329279403,1718212473856,-2243.187102,0.00031799,120]
[329279404,1718212473887,-3149.04668809,0.00031799,30]
[329279405,1718212473922,-1388.26899939,0.00031799,30]
[329279406,1718212473953,-1090.0497398,0.00031799,30]
[329279407,1718212473996,-285.4073748,0.00031799,30]
[329279408,1718212474028,-905.06864901,0.00031799,120]
[329279409,1718212474059,-676.42767024,0.00031799,30]
[329279410,1718212474091,-168.29344157,0.00031799,120]
[329279411,1718212474122,-2068.90185321,0.00031799,30]
[329279412,1718212474152,-205.87466831,0.00031799,120]
[329279413,1718212474184,-2524.87354862,0.00031799,120]
[329279414,1718212474216,-1044.42034318,0.00031799,120]
[329279415,1718212474248,-203.60773634,0.00031799,30]
[329279416,1718212474282,-1651.32538208,0.00031799,120]
[329279417,1718212474320,-1127.36932985,0.00031799,120]
[329279418,1718212474352,-178.0,0.00031799,120]
[329279419,1718212474387,-998.78281587,0.00031799,120]
[329279420,1718212474417,-1113.60169633,0.00031799,120]
[329279421,1718212474832,-1031.13,0.00027341,30]
[329279422,1718212474869,-1000.0,0.0002976,30]
[329279423,1718212474906,-434.96890146,0.0003,30]
[329279424,1718212474940,-1800.0,0.0003,31]
[329279425,1718212474978,-1458.90507913,0.0003,30]
[329279426,1718212475020,-904.71636936,0.0003,120]
[329279427,1718212475053,-309.56000574,0.0003,30]
[329279428,1718212475083,-1848.58776376,0.0003,120]
[329279429,1718212475116,-200.0,0.0003,90]
[329279430,1718212475147,-500.0,0.0003,30]
[329279431,1718212475179,-9321.01035016,0.0003,30]
[329279432,1718212475210,-546.0,0.0003,120]
[329279433,1718212475239,-250.0,0.0003,30]
[329279434,1718212475270,-3929.94859853,0.0003,30]
[329279435,1718212475312,-1000.0,0.00030254,120]
[329279436,1718212475348,-5695.164047,0.000305,30]
[329279437,1718212475380,-200.0,0.00030504,120]
[329279438,1718212475414,-163.63284155,0.00030767,30]
[329279439,1718212475448,-163.63284155,0.00030877,30]
[329279440,1718212475484,-150.0,0.00030915,120]
[329279441,1718212475517,-1799.99999906,0.00031,30]
[329279442,1718212475549,-163.63284155,0.00031014,30]
[329279443,1718212475580,-200.0,0.00031104,120]
[329279444,1718212475612,-1000.0,0.00031104,120]
[329279445,1718212475644,-163.63284155,0.00031151,30]
[329279446,1718212475676,-163.63284155,0.00031288,30]
[329279447,1718212475707,-163.63284155,0.00031397,30]
[329279448,1718212475738,-163.63284155,0.00031534,30]
[329279449,1718212475768,-157.25892517,0.00031534,30]
[329279450,1718212475800,-163.63284155,0.00031671,30]
[329279451,1718212475832,-157.25892517,0.00031671,30]
[329279452,1718212475867,-157.25892517,0.00031781,30]
[329279453,1718212475926,-163.63284155,0.00031808,30]
[329279454,1718212475962,-163.63284155,0.00031918,30]
[329279455,1718212476007,-157.25892517,0.00031918,30]
[329279456,1718212476040,-1401.59777208,0.00032,60]
[329279457,1718212476073,-1618.6597813,0.00032,120]
[329279458,1718212476105,-1800.0,0.00032,33]
[329279459,1718212476139,-500.0,0.00032,120]
[329279460,1718212476174,-255.14622618,0.00032,30]
[329279461,1718212476211,-163.63284155,0.00032055,30]
[329279462,1718212476250,-157.25892517,0.00032055,30]
[329279463,1718212476284,-163.63284155,0.00032192,30]
[329279464,1718212476324,-157.25892517,0.00032192,30]
[329279465,1718212476361,-1031.13,0.00032322,30]
[329279466,1718212476396,-163.63284155,0.00032329,30]
[329279467,1718212476433,-157.25892517,0.00032329,30]
[329279468,1718212476468,-163.63284155,0.00032438,30]
[329279469,1718212476505,-157.25892517,0.00032466,30]
[329279470,1718212476543,-1208.0,0.00032497,30]
[329279471,1718212476581,-163.63284155,0.00032575,30]
[329279472,1718212476618,-157.25892517,0.00032603,30]
[329279473,1718212476653,-150.0,0.0003269,120]
[329279474,1718212476687,-157.25892517,0.00032712,30]
[329279475,1718212476723,-157.25892517,0.00032849,30]
[329279476,1718212476756,-1175.99,0.00032876,120]
[329279477,1718212476790,-1175.99,0.00032876,120]
[329279478,1718212476825,-1175.99,0.00032876,120]
[329279479,1718212477059,-1175.99,0.00032876,120]
[329279480,1718212477091,-1175.99,0.00032876,120]
[329279481,1718212477125,-1175.99,0.00032876,120]
[329279482,1718212477157,-1175.99,0.00032876,120]
[329279483,1718212477190,-1175.99,0.00032876,120]
[329279484,1718212477223,-1175.99,0.00032876,120]
[329279485,1718212477256,-1175.99,0.00032876,120]
[329279486,1718212477291,-1175.99,0.00032876,120]
[329279487,1718212477328,-1175.99,0.00032876,120]
[329279488,1718212477362,-1175.99,0.00032876,120]
[329279489,1718212477397,-1175.99,0.00032876,120]
[329279490,1718212477429,-1175.99,0.00032876,120]
[329279491,1718212477461,-1175.99,0.00032876,120]
[329279492,1718212477491,-1175.99,0.00032876,120]
[329279493,1718212477524,-1175.99,0.00032876,120]
[329279494,1718212477557,-1175.99,0.00032876,120]
[329279495,1718212477589,-1175.99,0.00032876,120]
[329279496,1718212477622,-1175.99,0.00032876,120]
[329279497,1718212477657,-1175.99,0.00032876,120]
[329279498,1718212477689,-1175.99,0.00032876,120]
[329279499,1718212477721,-1176.10648431,0.00032876,120]
[329279500,1718212477756,-2000.0,0.00032877,30]
[329279501,1718212477789,-2000.0,0.00032877,30]
[329279502,1718212477823,-1643.37327855,0.000329,30]
[329279503,1718212477856,-157.25892517,0.00032986,30]
[329279504,1718212477889,-159.00925297,0.00033,120]
[329279505,1718212477922,-1393.725832,0.00033,34]
[329279506,1718212477959,-331.692595,0.00033101,120]
[329279507,1718212478013,-157.25892517,0.00033123,30]
[329279508,1718212478051,-157.25892517,0.0003326,30]
[329279509,1718212478087,-157.25892517,0.00033397,30]
[329279510,1718212478120,-2000.0,0.00033425,30]
[329279511,1718212478149,-2000.0,0.00033425,30]
[329279512,1718212478180,-1423.791011,0.000335,30]
[329279513,1718212478216,-150.0,0.00033644,120]
[329279514,1718212478246,-200.0,0.00033672,120]
[329279515,1718212478279,-169.76,0.00033768,120]
[329279516,1718212478311,-1931.98517044,0.00033811,40]
[329279517,1718212478343,-504.3201479,0.00033811,40]
[329279518,1718212478376,-264.37949976,0.00033811,40]
[329279519,1718212478407,-1702.58096184,0.00033811,40]
[329279520,1718212478438,-1336.15996242,0.00033811,40]
[329279521,1718212478470,-2000.0,0.00033973,30]
[329279522,1718212478499,-2000.0,0.00033973,30]
[329279523,1718212478533,-1800.0,0.00034,35]
[329279524,1718212478570,-1450.0,0.00034,120]
[329279525,1718212478608,-947.49497179,0.00034,120]
[329279526,1718212478641,-500.0,0.00034,120]
[329279527,1718212478676,-2000.0,0.00034521,30]
[329279528,1718212478704,-2000.0,0.00034521,30]
[329279529,1718212478735,-516.34,0.00034537,120]
[329279530,1718212478771,-1000.0,0.00034743,120]
[329279531,1718212478817,-1115.03785414,0.00035,30]
[329279532,1718212478851,-2058.59273479,0.00035,30]
[329279533,1718212478887,-1350.0,0.00035,120]
[329279534,1718212478922,-1005.97660372,0.00035,30]
[329279535,1718212478956,-2235.13107036,0.00035,30]
[329279536,1718212478998,-200.0,0.00035,120]
[329279537,1718212479037,-500.0,0.00035,60]
[329279538,1718212479073,-218.0,0.00035,120]
[329279539,1718212479110,-1113.60169633,0.00035,120]
[329279540,1718212479145,-450.0,0.0003502,30]
[329279541,1718212479179,-2000.0,0.00035068,30]
[329279542,1718212479217,-2000.0,0.00035068,30]
[329279543,1718212479254,-150.0,0.00035542,120]
[329279544,1718212479290,-1424.609,0.00035616,30]
[329279545,1718212479329,-150.0,0.00035785,120]
[329279546,1718212479367,-1250.0,0.00036,120]
[329279547,1718212479404,-500.0,0.00036,120]
[329279548,1718212479436,-264.045648,0.00036241,120]
[329279549,1718212479471,-450.0,0.0003626,30]
[329279550,1718212479508,-150.0,0.00036879,120]
[329279551,1718212479544,-535.76634863,0.00036955,120]
[329279552,1718212479576,-155.0,0.00036955,30]
[329279553,1718212479610,-1150.0,0.00037,120]
[329279554,1718212479644,-1031.13,0.00037304,30]
[329279555,1718212479678,-150.0,0.00037445,120]
[329279556,1718212479715,-150.0,0.00037445,120]
[329279557,1718212479748,-450.0,0.000375,30]
[329279558,1718212479783,-6557.59635871,0.000379,30]
[329279559,1718212479819,-1439.82,0.00038,120]
[329279560,1718212479858,-441.19412058,0.00038,30]
[329279561,1718212479890,-500.0,0.00038,120]
[329279562,1718212479927,-1113.60169633,0.00038,120]
[329279563,1718212479963,-800.0,0.00038356,100]
[329279564,1718212480008,-800.0,0.00038356,100]
[329279565,1718212480044,-800.0,0.00038356,100]
[329279566,1718212480080,-800.0,0.00038356,100]
[329279567,1718212480115,-800.0,0.00038356,100]
[329279568,1718212480150,-800.0,0.00038356,100]
[329279569,1718212480186,-800.0,0.00038356,100]
[329279570,1718212480221,-800.0,0.00038356,100]
[329279571,1718212480258,-800.0,0.00038356,100]
[329279572,1718212480293,-368.63265805,0.00038356,100]
[329279573,1718212480328,-2000.0,0.00038356,60]
[329279574,1718212480365,-2000.0,0.00038356,60]
[329279575,1718212480405,-2000.0,0.00038356,60]
[329279576,1718212480450,-2000.0,0.00038356,60]
[329279577,1718212480483,-2000.0,0.00038356,60]
[329279578,1718212480518,-2000.0,0.00038356,60]
[329279579,1718212480553,-2000.0,0.00038356,60]
[329279580,1718212480596,-2000.0,0.00038356,60]
[329279581,1718212480634,-2000.0,0.00038356,60]
[329279582,1718212480810,-2000.0,0.00038356,60]
[329279583,1718212480845,-2000.0,0.00038356,60]
[329279584,1718212480879,-2000.0,0.00038356,60]
[329279585,1718212480910,-2000.0,0.00038356,60]
[329279586,1718212480944,-2000.0,0.00038356,60]
[329279587,1718212480978,-2000.0,0.00038356,60]
[329279588,1718212481019,-2000.0,0.00038356,60]
[329279589,1718212481054,-2000.0,0.00038356,60]
[329279590,1718212481090,-2000.0,0.00038356,60]
[329279591,1718212481124,-2000.0,0.00038356,60]
[329279592,1718212481157,-382.38485225,0.00038356,60]
[329279593,1718212481189,-3080.0,0.00038356,30]
[329279594,1718212481223,-1000.0,0.00038381,120]
[329279595,1718212481254,-1964.50090375,0.000384,33]
[329279596,1718212481288,-677.60941093,0.000384,120]
[329279597,1718212481325,-420.79600597,0.00038511,120]
[329279598,1718212481356,-450.0,0.0003874,30]
[329279599,1718212481391,-1523.97200223,0.000389,30]
[329279600,1718212481426,-1050.0,0.00039,120]
[329279601,1718212481459,-747.76833615,0.00039,120]
[329279602,1718212481492,-1004.18414344,0.00039,30]
[329279603,1718212481524,-904.42192703,0.00039,30]
[329279604,1718212481560,-2416.0,0.00039362,120]
[329279605,1718212481592,-565.71612495,0.000394,30]
[329279606,1718212481625,-301.50363579,0.000395,30]
[329279607,1718212481659,-150.0,0.00039522,120]
[329279608,1718212481693,-1339.52,0.00039726,90]
[329279609,1718212481726,-1339.52,0.00039726,90]
[329279610,1718212481756,-1339.52,0.00039726,90]
[329279611,1718212481794,-1339.52,0.00039726,90]
[329279612,1718212481829,-1339.52,0.00039726,90]
[329279613,1718212481861,-1339.52,0.00039726,90]
[329279614,1718212481890,-1339.52,0.00039726,90]
[329279615,1718212481922,-1339.52,0.00039726,90]
[329279616,1718212481952,-1339.52,0.00039726,90]
[329279617,1718212481993,-1339.52,0.00039726,90]
[329279618,1718212482024,-1339.52,0.00039726,90]
[329279619,1718212482055,-1339.52,0.00039726,90]
[329279620,1718212482088,-1339.52,0.00039726,90]
[329279621,1718212482118,-1339.52,0.00039726,90]
[329279622,1718212482146,-1339.52,0.00039726,90]
[329279623,1718212482174,-1339.52,0.00039726,90]
[329279624,1718212482201,-1339.52,0.00039726,90]
[329279625,1718212482229,-1339.52,0.00039726,90]
[329279626,1718212482258,-1339.52,0.00039726,90]
[329279627,1718212482289,-1339.52,0.00039726,90]
[329279628,1718212482318,-1339.52,0.00039726,90]
[329279629,1718212482349,-1339.52,0.00039726,90]
[329279630,1718212482379,-1339.52,0.00039726,90]
[329279631,1718212482409,-1339.6617186,0.00039726,90]
[329279632,1718212482440,-150.0,0.00039736,120]
[329279633,1718212482471,-150.0,0.00039796,120]
[329279634,1718212482502,-1154.20029733,0.000398,120]
[329279635,1718212482531,-500000.0,0.000398,30]
[329279636,1718212482561,-263924.1942894,0.000398,40]
[329279637,1718212482783,160.0,0.00031799,30]
[329279638,1718212487362,-236075.8057106,0.000398,40]
[329279639,1718212487395,-500000.0,0.000398,50]
[329279640,1718212487426,-263924.1942894,0.000398,60]
[329279641,1718212490536,-236075.8057106,0.000398,60]
[329279642,1718212490566,-500000.0,0.000398,35]
[329279643,1718212490596,-2631.66799321,0.000398,120]
[329279644,1718212490626,-161.55124268,0.0003985,30]
[329279645,1718212490657,-3269.50243985,0.00039876,31]
[329279646,1718212490687,-257861.47261366,0.0003988,30]
[329279647,1718212496142,-2343.55000952,0.00035,30]
[329279648,1718212496186,-3986788.17008898,0.0003988,30]
[329279649,1718212496215,-2205.10015233,0.000399,120]
[329279650,1718212496401,-2024.54050809,0.0003993,45]
[329279651,1718212496433,-608.15915741,0.00039963,45]
[329279652,1718212496469,-2024.54050809,0.00039965,45]
[329279653,1718212496501,-608.15915741,0.00039971,45]
[329279654,1718212496532,-667.5748143,0.0003998,30]
[329279655,1718212496563,-608.15915741,0.00039988,45]
[329279656,1718212496598,-2024.54050809,0.00039997,45]
[329279657,1718212496633,-50000.0,0.0004,30]
[329279658,1718212496664,-2500.0,0.0004,30]
[329279659,1718212496695,-2064.8,0.0004,30]
[329279660,1718212496723,-520.10747504,0.0004,60]
[329279661,1718212496752,-1845.0,0.0004,30]
[329279662,1718212496782,-245.78727695,0.0004,120]
[329279663,1718212496810,-2017.85080349,0.0004,120]
[329279664,1718212496838,-5000.0,0.0004,30]
[329279665,1718212496865,-5000.0,0.0004,30]
[329279666,1718212496893,-2583.0,0.0004,120]
[329279667,1718212496922,-9685.97641245,0.0004,60]
[329279668,1718212496951,-5042.0,0.0004,120]
[329279669,1718212496980,-163.8553934,0.0004,120]
[329279670,1718212497025,-2946.90356697,0.0004,120]
[329279671,1718212497055,-2896.60364277,0.0004,30]
[329279672,1718212497085,-1470.47925445,0.0004,30]
[329279673,1718212497116,-2966.8800364,0.0004,120]
[329279674,1718212497146,-330.16311226,0.0004,30]
[329279675,1718212497175,-2600.00170449,0.0004,30]
[329279676,1718212497206,-2453.66630707,0.0004,120]
[329279677,1718212497236,-193.46109591,0.0004,30]
[329279678,1718212497264,-1415.50091139,0.0004,30]
[329279679,1718212497294,-660.22802582,0.0004,30]
[329279680,1718212497324,-1063.64383239,0.0004,120]
[329279681,1718212497353,-2451.23901771,0.0004,30]
[329279682,1718212497384,-1037.86581205,0.0004,60]
[329279683,1718212497415,-2450.4290268,0.0004,120]
[329279684,1718212497444,-1040.97836657,0.0004,32]
[329279685,1718212497474,-200.0,0.0004,120]
[329279686,1718212497503,-358.16690856,0.0004,90]
[329279687,1718212497531,-1414.77115876,0.0004,120]
[329279688,1718212497559,-500.0,0.0004,120]
[329279689,1718212497589,-2500.0,0.0004,120]
[329279690,1718212497617,-2500.0,0.0004,120]
[329279691,1718212497646,-2500.0,0.0004,120]
[329279692,1718212497675,-2500.0,0.0004,120]
[329279693,1718212497705,-2500.0,0.0004,120]
[329279694,1718212497734,-2500.0,0.0004,120]
[329279695,1718212497763,-2500.0,0.0004,120]
[329279696,1718212497792,-2500.0,0.0004,120]
[329279697,1718212497822,-2500.0,0.0004,120]
[329279698,1718212497851,-2500.0,0.0004,120]
[329279699,1718212497881,-2500.0,0.0004,120]
[329279700,1718212497909,-2500.0,0.0004,120]
[329279701,1718212497942,-2283.04036405,0.0004,120]
[329279702,1718212497974,-737.3,0.0004,120]
[329279703,1718212498016,-591.91584041,0.0004001,30]
[329279704,1718212498047,-1433.58388,0.00040088,30]
[329279705,1718212498077,-500.0,0.000401,120]
[329279706,1718212498108,-436.37778395,0.000401,30]
[329279707,1718212498136,-290.78767137,0.000401,120]
[329279708,1718212498164,-487.12506804,0.000401,30]
[329279709,1718212498194,-2000.0,0.00040192,30]
[329279710,1718212498223,-1433.58388,0.00040288,30]
[329279711,1718212498254,-1000.0,0.000403,120]
[329279712,1718212498285,-1000.0,0.000403,120]
[329279713,1718212498313,-1000.0,0.000403,120]
[329279714,1718212498344,-1000.0,0.000403,120]
[329279715,1718212498374,-1000.0,0.000403,120]
[329279716,1718212498400,-1000.0,0.000403,120]
[329279717,1718212498426,-1000.0,0.000403,120]
[329279718,1718212498451,-1000.0,0.000403,120]
[329279719,1718212498477,-1000.0,0.000403,120]
[329279720,1718212498506,-674.28,0.000403,120]
[329279721,1718212498537,-150.0,0.00040357,120]
[329279722,1718212498567,-150.0,0.00040377,120]
[329279723,1718212498602,-150.0,0.00040452,120]
[329279724,1718212498633,-1433.58388,0.00040488,30]
[329279725,1718212498663,-2500.0,0.000405,120]
[329279726,1718212498693,-150.0,0.00040523,120]
[329279727,1718212498724,-1433.58388,0.00040688,30]
[329279728,1718212498755,-680.4881363,0.00040739,60]
[329279729,1718212498788,-12490.74155116,0.00040749,60]
[329279730,1718212498822,-12490.74155116,0.00040796,60]
[329279731,1718212498854,-2593.27189507,0.00040798,50]
[329279732,1718212498884,-1000.0,0.000408,120]
[329279733,1718212498912,-1000.0,0.000408,120]
[329279734,1718212498942,-1000.0,0.000408,120]
[329279735,1718212498972,-1000.0,0.000408,120]
[329279736,1718212499017,-1000.0,0.000408,120]
[329279737,1718212499047,-1123.38,0.000408,120]
[329279738,1718212499080,-680.4881363,0.00040826,60]
[329279739,1718212499117,-12490.74155116,0.00040837,60]
[329279740,1718212499148,-680.4881363,0.00040843,60]
[329279741,1718212499179,-3255.90215956,0.000409,30]
[329279742,1718212499209,-824.96916805,0.00040999,120]
[329279743,1718212499244,-50000.0,0.00041,31]
[329279744,1718212499274,-40257.62342151,0.00041,30]
[329279745,1718212499308,-950.0,0.00041,120]
[329279746,1718212499342,-2461.28427084,0.00041,30]
[329279747,1718212499371,-1845.0,0.00041,30]
[329279748,1718212499403,-1312.0292262,0.00041,50]
[329279749,1718212499432,-66179.0,0.00041,30]
[329279750,1718212499461,-1142.74,0.00041,90]
[329279751,1718212499490,-670.2812574,0.00041,60]
[329279752,1718212499521,-1061.2679476,0.00041,120]
[329279753,1718212499550,-4734.3290547,0.00041,40]
[329279754,1718212499691,-151.324459,0.00041,43]
[329279755,1718212499724,-152.0,0.00041041,31]
[329279756,1718212499755,-1546.69487487,0.00041058,120]
[329279757,1718212499786,-152.0,0.00041059,31]
[329279758,1718212499815,-152.0,0.00041078,31]
[329279759,1718212499846,-1433.58388,0.00041088,30]
[329279760,1718212499875,-289.01980339,0.00041095,120]
[329279761,1718212499905,-510.0,0.00041095,120]
[329279762,1718212499936,-1000.0,0.00041095,120]
[329279763,1718212499964,-162.73,0.00041096,30]
[329279764,1718212500047,1401.59777208,0.00032,60]
[329279765,1718212504061,434.96890146,0.0003,30]
[329279766,1718212509302,535.76634863,0.00033,120]
[329279767,1718212510569,290.78767137,0.0004,120]
[329279768,1718212512008,500.0,0.00031799,30]
[329279769,1718212513514,500.0,0.00031799,30]
[329279770,1718212514460,260.97,0.00031799,30]
[329279771,1718212575321,1740.2441,0.00031799,30]
[329279772,1718212581578,163.48245204,0.00013997,2]
[329279773,1718212581672,1000.0,0.00031799,30]
[329279774,1718212582781,1000.0,0.00031799,30]
[329279775,1718212583929,985.42707091,0.00031799,30]
[329279776,1718212593079,1624.97630536,0.00031799,30]
[329279777,1718212596454,500.0,0.00031799,30]
[329279778,1718212597392,500.0,0.00031799,30]
[329279779,1718212598304,420.97,0.00031799,30]
[329279780,1718212621010,2599.0,0.00031799,120]
[329279781,1718212622724,451.82332577,0.00031799,120]
[329279783,1718212670328,1113.60169633,0.00031799,120]
[329279784,1718212731295,1007.52912224,0.00031799,30]
[329279785,1718212779065,1305.0051709,0.00031796,60]
[329279786,1718212801933,1000.0,0.00031796,30]
[329279787,1718212802180,1000.0,0.00031796,30]
[329279788,1718212803135,858.21058216,0.00031796,30]
[329279789,1718212803338,1000.0,0.00031796,30]
[329279790,1718212804500,1000.0,0.00031796,30]
[329279791,1718212805648,1000.0,0.00031796,30]
[329279792,1718212806789,1000.0,0.00031796,30]
[329279793,1718212810702,1000.0,0.00031796,60]
[329279794,1718212823557,1000.0,0.00031796,60]
[329279795,1718212836403,1000.0,0.00031796,30]
[329279796,1718212849251,1000.0,0.00031796,30]
[329279797,1718212862110,1000.0,0.00031796,30]
[329279798,1718212874946,1000.0,0.00031796,60]
[329279799,1718212887788,1000.0,0.00031796,30]
[329279800,1718212900643,1000.0,0.00031796,120]
[329279801,1718212913491,1000.0,0.00031796,30]
[329279802,1718212926523,1000.0,0.00031796,30]
[329279803,1718212939388,1000.0,0.00031796,60]
[329279805,1718212947824,160.0,0.00031796,30]
[329279806,1718212951673,1031.16,0.00024329,30]
[329279807,1718212952220,1000.0,0.00031796,30]
[329279808,1718212966535,1000.0,0.00031796,30]
[329279809,1718212979494,1000.0,0.00031796,30]
[329279810,1718212992229,1000.0,0.00031796,60]
[329279811,1718213005205,1000.0,0.00031796,60]
[329279812,1718213018128,1000.0,0.00031796,60]
[329279813,1718213031154,1000.0,0.00031796,30]
[329279814,1718213044027,1000.0,0.00031796,120]
[329279815,1718213058754,1000.0,0.00031796,30]
[329279816,1718213071589,1000.0,0.00031796,30]
[329279817,1718213084453,1000.0,0.00031796,30]
[329279818,1718213097314,1000.0,0.00031796,60]
[329279819,1718213110179,1000.0,0.00031796,60]
[329279820,1718213123047,1000.0,0.00031796,30]
[329279821,1718213135898,1000.0,0.00031796,60]
[329279823,1718213149347,1000.0,0.00031796,60]
[329279824,1718213163592,1000.0,0.00031796,30]
[329279825,1718213177791,1000.0,0.00031796,60]
[329279826,1718213192037,1000.0,0.00031796,60]
[329279827,1718213206120,1000.0,0.00031796,60]
[329279828,1718213220000,1000.0,0.00031796,120]
[329279829,1718213233977,1000.0,0.00031796,120]
[329279830,1718213248121,1000.0,0.00031796,60]
[329279831,1718213262335,1000.0,0.00031796,60]
[329279832,1718213276639,1000.0,0.00031796,30]
[329279833,1718213290843,1000.0,0.00031796,60]
[329279834,1718213304914,1000.0,0.00031796,60]
[329279836,1718213319137,1000.0,0.00031796,60]
[329279837,1718213333362,1000.0,0.00031796,60]
[329279838,1718213347496,1000.0,0.00031796,120]
[329279839,1718213361775,1039.46,0.00031866,30]
[329279844,1718213433412,-543.0590846,0.00014994,2]
[329279845,1718213433425,-673.52955356,0.00014995,2]
[329279846,1718213433441,-150.0,0.00014997,2]
[329279847,1718213433455,-150.0,0.00015997,2]
[329279848,1718213433497,-150.0,0.00016997,2]
[329279849,1718213433512,-150.0,0.00017997,2]
[329279850,1718213433524,-756.272884,0.00018902,2]
[329279851,1718213433535,-150.0,0.00018997,2]
[329279852,1718213433551,-214.94,0.00018997,2]
[329279853,1718213433561,-643.4485,0.00019351,2]
[329279854,1718213433572,-9275.92,0.00019351,2]
[329279855,1718213433584,-300.0,0.00019448,2]
[329279856,1718213433598,-908.93,0.00019449,2]
[329279857,1718213433610,-801.87,0.00019449,2]
[329279858,1718213433621,-150.99,0.00019449,2]
[329279859,1718213433638,-150.99,0.00019452,2]
[329279860,1718213433652,-150.0,0.00019997,2]
[329279861,1718213433663,-226.74152349,0.000201,2]
[329279862,1718213433677,-150.0,0.00020997,2]
[329279863,1718213433705,-324.15,0.000216,2]
[329279864,1718213433720,-1000.0,0.000219,2]
[329279865,1718213433737,-150.0,0.00021997,2]
[329279866,1718213433753,-2104.028374,0.00022215,2]
[329279867,1718213433764,-669.614761,0.00022215,2]
[329279868,1718213433775,-3305.104355,0.00022215,2]
[329279869,1718213433791,-2104.028374,0.00022493,2]
[329279870,1718213433803,-669.614761,0.00022493,2]
[329279871,1718213433826,-3305.104355,0.00022493,2]
[329279872,1718213433845,-1247.09796899,0.0002277,2]
[329279873,1718213433860,-856.93040501,0.0002277,2]
[329279874,1718213433875,-206.37955851,0.0002277,2]
[329279875,1718213433897,-463.23520249,0.0002277,2]
[329279876,1718213433915,-3305.104355,0.0002277,2]
[329279877,1718213433933,-150.0,0.00022997,2]
[329279878,1718213433950,-20002.7,0.00023047,2]